[Event "European Women-ch 2023"]
[Site "Petrovac"]
[Date "2023.03.20"]
[Round "3.2"]
[White "Toncheva, Nadya"]
[Black "Buksa, Nataliya"]
[Result "0-1"]
[ECO "C88"]
[WhiteElo "2192"]
[BlackElo "2405"]
[Annotator "TA"]
[PlyCount "238"]
[EventDate "2023.03.15"]
[EventType "swiss"]
[EventCountry "MNE"]
[SourceTitle "playchess.com"]
[Source "ChessBase"]
[SourceQuality "1"]
[TimeControl "40/5400+30:1800+30"]

{[%evp 37,238,16,50,42,50,37,32,0,2,0,18,8,17,0,18,-29,-25,-56,-27,-32,0,0,0,0,0,0,0,0,0,0,130,136,139,141,135,125,120,0,0,0,0,0,0,0,0,0,0,0,0,0,108,116,122,121,114,13,85,74,83,0,0,0,0,0,0,0,0,0,0,0,0,0,0,0,0,0,0,0,0,0,0,0,0,0,0,0,0,0,0,0,0,0,0,0,0,0,0,0,0,0,0,0,0,0,0,0,0,0,0,0,0,0,0,0,0,0,0,0,0,0,0,0,0,0,0,0,0,0,0,0,0,0,0,0,0,0,0,0,0,-881,0,-860,-852,-852,-852,-372,-852,-852,-845,-805,-639,-29959,-29943,-29957,-5069,-29959,-1803,-1008,-1447,-29963,-29966,-29963,-29965,-9147,-5127,-2491,-1518,-1215,-1180,-1319,-1062,-29977,-29978,-29978,-29979,-29979,-29980,-29984,-29985,-29985,-29986,-29983,-29984,-29984,-29985,-29985,-29986,-29986,-29987,-29987,-29988,-29988,-29988,-29988,-29988,-29988,-29988,-29989,-29989,-29989,-29990,-29998,-29999]} 1. e4 {[%emt 0:00:03]} e5 {[%emt 0:00:43]} 2. Nf3 {[%emt 0:00:10]} Nc6 {[%emt 0:00:03]} 3. Bb5 {[%emt 0:00:07]} a6 {[%emt 0:00:10]} 4. Ba4 {[%emt 0:00:06]} Nf6 {[%emt 0:00:05]} 5. O-O {[%emt 0:00:07]} Be7 {[%emt 0:00:19]} 6. Re1 {[%emt 0:00:07]} b5 {[%emt 0:00:05]} 7. Bb3 {[%emt 0:00:03]} O-O {[%emt 0:00:04]} 8. a4 {[%emt 0:00:04]} Bb7 {[%emt 0:00:49]} 9. d3 {[%emt 0:00:06]} d6 {[%emt 0:00:05]} 10. Nbd2 {[%emt 0:00:05]} Nd7 {[%emt 0:00:37]} 11. Nf1 {[%emt 0:00:04]} bxa4 {[%emt 0:10:33]} 12. Bxa4 {[%emt 0:01:27]} Nc5 {[%emt 0:00:05]} 13. Bxc6 {[%emt 0:02:50]} Bxc6 {[%emt 0:00:45]} 14. Ne3 {[%emt 0:03:09]} Re8 {[%emt 0:13:20]} 15. Nd5 {[%emt 0:03:03]} Bf8 {[%emt 0:15:56]} 16. Be3 {[%emt 0:01:19]} Ne6 {[%emt 0:02:13]} 17. Nd2 {[%emt 0:06:16]} g6 {[%emt 0:03:53]} 18. Nb3 {[%emt 0:07:05]} Bg7 {[%emt 0:00:33]} 19. Nb4 {[%emt 0:01:30]} Bb7 {[%emt 0:01:38]} 20. Na5 {[%emt 0:00:49]} Bc8 {[%emt 0:00:03]} 21. Nbc6 {[%emt 0:09:54]} Qh4 {[%emt 0:01:25]} 22. Qf3 {[%emt 0:05:01]} Bd7 {[%emt 0:01:10]} 23. Ra3 {[%emt 0:07:47]} Nf4 {[%emt 0:19:35]} 24. Bxf4 {[%emt 0:04:24]} exf4 {[%emt 0:00:04]} 25. d4 {[%emt 0:01:35]} g5 {[%emt 0:00:06]} 26. h3 {[%emt 0:02:45]} (26. Rb3 {was preferrable.}) 26... Re6 $11 {[%emt 0:02:03]} 27. d5 {[%emt 0:05:16]} Ree8 {[%emt 0:00:48]} 28. Rb3 {[%emt 0:04:21]} f5 {[%emt 0:01:30]} 29. Rb7 {[%emt 0:02:12]} Rac8 {[%emt 0:01:57]} 30. Re2 {[%emt 0:06:58]} g4 {[%emt 0:07:42]} 31. hxg4 {[%emt 0:00:33]} fxe4 {[%emt 0:02:28]} 32. Rxe4 {[%emt 0:01:34]} Rxe4 {[%emt 0:05:27]} 33. Qxe4 {[%emt 0:00:06]} Re8 {[%emt 0:00:05]} (33... Qxg4 $11 34. f3 (34. Ne7+ Kf8 $11) 34... Qg3) 34. Rb8 $16 {[%emt 0:00:04]} (34. Qxf4 $2 Re1#) (34. Qb4 $2 Re2 35. Rb8+ Kf7 36. Qxf4+ Bf6 $19) 34... Rxb8 {[%emt 0:00:34]} 35. Nxb8 {[%emt 0:00:05]} Qxg4 {[%emt 0:00:19]} 36. f3 {[%emt 0:02:46]} (36. Nxa6 Qd1+ 37. Kh2 Bd4 $15) 36... Qh4 {[%emt 0:05:08]} 37. Nac6 {[%emt 0:01:02]} (37. Nxd7 $6 Bd4+ 38. Qxd4 Qe1+ 39. Kh2 Qh4+ 40. Kg1 Qe1+ 41. Kh2 Qh4+ 42. Kg1 $11) (37. Nxa6 $6 Bxb2 38. Nc4 (38. Nxc7 Qd8 $11) 38... Bc3 39. Nxc7 Be1 $11) (37. c3 $16 Bb5 38. Nbc6) 37... Bxc6 $11 {[%emt 0:01:42]} 38. Nxc6 {[%emt 0:01:37]} Bxb2 {[%emt 0:00:31]} 39. Ne7+ {[%emt 0:08:52]} Kf8 {[%emt 0:00:44]} 40. Nf5 {[%emt 0:00:00]} Qf6 {[%emt 0:00:00]} 41. Qxf4 {[%emt 0:01:38]} Bc1 {[%emt 0:17:50]} 42. Qg4 {[%emt 0:07:45]} Qg6 {[%emt 0:04:17]} 43. Qe4 {[%emt 0:00:46]} Qf6 {[%emt 0:00:22]} (43... Bg5 $11 {keeps the balance.}) 44. Nd4 $16 {[%emt 0:01:05]} Qg6 {[%emt 0:06:33]} 45. Ne6+ {[%emt 0:00:51]} Kf7 {[%emt 0:00:04]} 46. Qc4 {[%emt 0:02:10]} (46. Nxc7 $6 Qxe4 47. fxe4 a5 $11) (46. Qe2 $16) 46... Be3+ {[%emt 0:00:10]} (46... c5 $11) 47. Kf1 $16 {[%emt 0:00:07]} Bb6 {[%emt 0:00:17] [#]} 48. Qh4 {[%emt 0:12:29]} (48. Nxc7 Qh6 49. Qc6 Qh1+ 50. Ke2 Qxg2+ 51. Kd3 Qxf3+ 52. Kd2 Qe3+ 53. Kd1 Ba5 54. Qd7+ Kg6 55. Qg4+ Kf6 56. Qh4+ Ke5 57. Qe7+ Kd4 $19) (48. Qf4+ $6 Qf6 $11) (48. g4 $1 $16) 48... Qf5 $11 {[%emt 0:02:48]} (48... Qxc2 49. Qf4+ Kg6 50. Qg5+ Kf7 51. Qg7+ Ke8 52. Qf8+ Kd7 53. Qd8#) 49. Ng5+ {[%emt 0:03:04]} Kg8 {[%emt 0:01:43]} 50. Ne4 {[%emt 0:00:34]} Kf7 {[%emt 0:02:13]} 51. c4 {[%emt 0:03:10]} a5 {[%emt 0:00:03]} 52. Ke2 {[%emt 0:02:03]} h5 {[%emt 0:03:04]} 53. Qd8 {[%emt 0:01:34]} Qe5 {[%emt 0:00:08]} 54. Qd7+ {[%emt 0:01:30]} Kf8 {[%emt 0:00:04]} 55. Qd8+ {[%emt 0:01:57]} Kf7 {[%emt 0:00:03]} 56. c5 {[%emt 0:00:29]} Bxc5 {[%emt 0:02:06]} 57. Qxc7+ {[%emt 0:00:06]} Kg6 {[%emt 0:00:04]} 58. Qxa5 {[%emt 0:00:48]} Qxd5 {[%emt 0:00:03]} 59. Qa4 {[%emt 0:00:39]} Qe5 {[%emt 0:00:13]} 60. Kf1 {[%emt 0:00:48]} Bd4 {[%emt 0:01:21]} 61. Qc6 {[%emt 0:01:22]} Bc5 {[%emt 0:00:52]} 62. Qa8 {[%emt 0:00:24]} Qe6 {[%emt 0:00:21]} 63. Qa6 {[%emt 0:00:51]} Qe5 {[%emt 0:00:46]} 64. Qa2 {[%emt 0:00:48]} Kg7 {[%emt 0:00:11]} 65. Nxc5 {[%emt 0:03:52]} dxc5 {[%emt 0:00:12]} 66. Qa7+ {[%emt 0:00:10]} Kf6 {[%emt 0:00:11]} 67. Qb6+ {[%emt 0:00:05]} Ke7 {[%emt 0:01:00]} 68. Qb7+ {[%emt 0:00:37]} Kd6 {[%emt 0:00:42]} 69. Qa6+ {[%emt 0:00:05]} Kd5 {[%emt 0:00:51]} 70. Qd3+ {[%emt 0:00:06]} Ke6 {[%emt 0:00:11]} 71. Qa6+ {[%emt 0:00:11]} Kf7 {[%emt 0:00:43]} 72. Qb7+ {[%emt 0:00:06]} Kf6 {[%emt 0:00:15]} 73. Qa6+ {[%emt 0:00:05]} Kg5 {[%emt 0:00:11]} 74. Qc4 {[%emt 0:00:44]} Qd4 {[%emt 0:01:16]} 75. Qg8+ {[%emt 0:00:23]} Kf4 {[%emt 0:00:17]} 76. Qf7+ {[%emt 0:00:36]} Ke3 {[%emt 0:00:10]} 77. Qe8+ {[%emt 0:00:22]} Kd2 {[%emt 0:00:07]} 78. Qe2+ {[%emt 0:02:35]} (78. Qxh5 $2 {leads to mate.} Qa1+ 79. Kf2 Qe1#) 78... Kc1 {[%emt 0:00:05]} 79. Qe1+ {[%emt 0:00:26]} Kb2 {[%emt 0:00:57]} 80. Qe2+ {[%emt 0:00:28]} Ka3 {[%emt 0:01:25]} 81. Qa6+ {[%emt 0:00:14]} Kb3 {[%emt 0:00:04]} 82. Qb5+ {[%emt 0:00:23]} Kc3 {[%emt 0:00:50]} 83. Qa5+ {[%emt 0:00:19]} Qb4 {[%emt 0:00:14]} 84. Qa1+ {[%emt 0:00:21]} Kc2 {[%emt 0:00:04]} 85. Qa2+ {[%emt 0:00:14]} Qb2 {[%emt 0:00:25]} 86. Qc4+ {[%emt 0:00:20]} Qc3 {[%emt 0:00:03]} 87. Qa4+ {[%emt 0:01:43]} Qb3 {[%emt 0:00:24]} 88. Qe8 $2 {[%emt 0:03:18][%mdl 8192] [#]} (88. Qe4+ $11 Qd3+ 89. Qe2+ Qxe2+ 90. Kxe2) 88... Qd3+ $2 {[%emt 0:00:58]} ({Black should play} 88... c4 $1 $19 89. Qe2+ Kc1) 89. Kf2 $2 {[%emt 0:00:53][%mdl 8192]} (89. Qe2+ $11 Kc3 90. g4 Qxe2+ 91. Kxe2 hxg4 92. fxg4) 89... Qd4+ {[%emt 0:00:24]} 90. Kg3 {[%emt 0:01:04]} h4+ {[%emt 0:01:53]} 91. Kh3 {[%emt 0:00:36]} c4 {[%emt 0:00:02]} 92. Qa4+ {[%emt 0:00:34]} Kd2 {[%emt 0:00:11]} 93. Qb4+ {[%emt 0:00:54]} Ke2 {[%emt 0:00:19]} 94. Qa4 {[%emt 0:00:48]} Ke3 {[%emt 0:00:23]} 95. Qe8+ {[%emt 0:00:42]} Kd3 {[%emt 0:00:14]} (95... Kd2 $142 96. Qa4 Qf4 97. Qb4+ Kd3 98. Qb1+ Kd4 99. Qa1+ c3 100. Qa4+ Ke3 101. Qa7+ Kd3 102. Qd7+ Kc2 103. Qh7+ Kd2 104. Qd7+ Kc1 105. Qg7 Qg3+ {[%mdl 64] Promotion} 106. Qxg3 hxg3 107. Kxg3 Kd2 108. Kg4 Ke3 109. Kg5 c2 110. Kg6 c1=Q 111. Kf5 Qc2+ 112. Kf6 Qxg2 113. Ke6 Qd2 114. Ke5 Kxf3 115. Kf6 Qd6+ 116. Kg7 Kg4 117. Kf7 Kf5 118. Ke8 Qc7 119. Kf8 Kf6 120. Kg8 Qg7#) 96. Qe1 {[%emt 0:00:57]} Kc2 {[%emt 0:01:01]} ({Not} 96... c3 97. Qd1+ Ke3 98. Qg1+ Kd3 99. Qd1+ Ke3 100. Qg1+ Kd3 101. Qd1+ $11) (96... Qf4 $142 97. g4 Qg3+ 98. Qxg3 hxg3 99. g5 Ke2 100. g6 Kf2 101. g7 g2 102. g8=Q g1=Q 103. Qb8 Qh1+ 104. Kg4 Qxf3+ 105. Kh4 Qe4+ 106. Kh5 Qf3+ 107. Kh4 c3 108. Qb6+ Qe3 109. Qf6+ Ke2 110. Qa6+ Qd3 111. Qe6+ Kd2 112. Qh6+ Ke1 113. Qe6+ Qe2 114. Qd5 c2 115. Qh1+ Kd2 116. Qd5+ Qd3 117. Qa5+ Kd1 118. Qh5+ Kc1 119. Qh8 Qe4+ 120. Kg3 Kd2 121. Qb2 Qe3+ 122. Kg4 Kd1 123. Qb7 Qe6+ 124. Kh5 c1=Q 125. Qh1+ Kd2 126. Qg2+ Qe2+ 127. Qxe2+ Kxe2 128. Kg6 Qc7 129. Kf6 Qd7 130. Kg5 Qe6 131. Kh5 Kf3 132. Kg5 Kg3 133. Kh5 Kf4 134. Kh4 Qh6#) 97. Qe2+ $19 {[%emt 0:00:35]} Kb3 {[%emt 0:00:09]} 98. g4 {[%emt 0:00:38]} c3 {[%emt 0:00:58]} 99. Qb5+ {[%emt 0:00:18]} Qb4 {[%emt 0:00:19]} 100. Qd5+ {[%emt 0:00:24]} Kb2 {[%emt 0:00:04]} 101. Qe5 {[%emt 0:00:03]} Kb1 {[%emt 0:01:18]} 102. Qe1+ {[%emt 0:00:12]} Ka2 {[%emt 0:00:06]} 103. Qe2+ {[%emt 0:01:41]} Kb3 {[%emt 0:00:13]} 104. Qe3 {[%emt 0:00:11]} Qd6 {[%emt 0:00:54]} 105. f4 {[%emt 0:00:37]} Kb2 {[%emt 0:00:13]} 106. Qe2+ {[%emt 0:01:15]} c2 {[%emt 0:00:05]} 107. Qb5+ {[%emt 0:00:41]} Kc3 {[%emt 0:00:06]} 108. Qa5+ {[%emt 0:00:09]} Kd3 {[%emt 0:00:07]} 109. Qb5+ {[%emt 0:00:30]} Kd2 {[%emt 0:00:04]} 110. Qb2 {[%emt 0:00:38]} Qxf4 {[%emt 0:01:26]} 111. Kxh4 {[%emt 0:00:04]} Qc4 {[%emt 0:00:06]} 112. Kh5 {[%emt 0:01:16]} Kd1 {[%emt 0:00:04]} 113. Qa3 {[%emt 0:00:21]} c1=Q {[%emt 0:00:28]} ({Stronger than} 113... c1=B 114. Qf3+ Kc2 115. Qf5+ Kb2 116. Qf6+ Kb3 117. Qf3+ Kb2 118. Qf6+ Kb1 119. Qf5+ Kb2 120. Qf6+ $15) 114. Qf3+ {[%emt 0:00:04]} Kc2 {[%emt 0:00:15]} 115. Qf5+ {[%emt 0:00:27]} Kb2 {[%emt 0:00:04]} 116. Qf6+ {[%emt 0:00:16]} Q1c3 {[%emt 0:00:08]} 117. Qb6+ {[%emt 0:00:10]} Ka3 {[%emt 0:00:11]} 118. Qa7+ {[%emt 0:00:06]} Kb4 {[%emt 0:00:04]} 119. g5 {[%emt 0:00:26]} Qh8+ {[%emt 0:00:17]} 0-1

[Event "European Women-ch 2023"]
[Site "Petrovac"]
[Date "2023.03.20"]
[Round "3.2"]
[White "Zhezhovska, Monika"]
[Black "Gajcin, Marina"]
[Result "0-1"]
[ECO "D85"]
[WhiteElo "1761"]
[BlackElo "2215"]
[Annotator "TA"]
[PlyCount "96"]
[EventDate "2023.03.15"]
[EventType "swiss"]
[EventCountry "MNE"]
[SourceTitle "playchess.com"]
[Source "ChessBase"]
[SourceQuality "1"]
[TimeControl "40/5400+30:1800+30"]

{[%evp 19,96,-8,14,19,31,36,25,33,36,-75,-87,-84,-93,-92,-91,-91,-86,-90,-89,-84,-84,-112,-102,-102,-102,-116,-104,-98,-97,-145,-138,-150,-157,-179,-164,-167,-171,-449,-443,-416,0,0,0,0,0,0,0,-33,0,0,0,0,0,0,0,-110,-40,-147,-147,-148,-243,-243,-230,-483,-399,-739,-378,-1039,-940,-29983,-29984,-29984,-29985,-29985,-29986,-29986,-29987,-29987,-29988]} 1. d4 {[%emt 0:00:08]} Nf6 {[%emt 0:00:12]} 2. c4 {[%emt 0:00:20]} g6 {[%emt 0:00:12]} 3. Nc3 {[%emt 0:00:15]} d5 {[%emt 0:00:09]} 4. Nf3 {[%emt 0:00:20]} Bg7 {[%emt 0:00:12]} 5. cxd5 {[%emt 0:00:34]} Nxd5 {[%emt 0:00:24]} 6. e4 {[%emt 0:00:26]} Nxc3 {[%emt 0:00:15]} 7. bxc3 {[%emt 0:00:08]} c5 {[%emt 0:00:08]} 8. Be3 {[%emt 0:00:20]} Qa5 {[%emt 0:01:04]} 9. Qd2 {[%emt 0:00:53]} O-O $1 {[%emt 0:00:45][%mdl 4] is more profitable than 9...Nc6 at the moment.} 10. Rb1 {[%emt 0:02:54]} a6 {[%emt 0:02:48]} 11. Rc1 {[%emt 0:03:19] D85: Exchange Grünfeld: Unusual White 7th moves and lines with 7 Nf3.} (11. dxc5 $2 Bxc3 12. Bc4 Bxd2+ $19) 11... Nc6 {[%emt 0:07:32]} 12. d5 {[%emt 0:12:55]} Rd8 {[%emt 0:06:36]} 13. Bd3 {[%emt 0:03:47] White has an edge.} Bg4 {[%emt 0:09:28] [#]} 14. dxc6 $146 {[%emt 0:12:28]} (14. Kf1 $14) ({Predecessor:} 14. h4 Bxf3 15. gxf3 e6 16. c4 Nb4 17. Ke2 Rac8 18. Rb1 exd5 19. cxd5 c4 20. Qxb4 cxd3+ {0-1 Ognean,M (2298)-Dragomirescu,R (2337) ROM-ch rapid Online GpC 2020 (6)}) 14... Bxf3 $1 $17 {[%emt 0:02:21]} 15. cxb7 {[%emt 0:01:02]} Rab8 {[%emt 0:03:15]} 16. gxf3 {[%emt 0:04:38]} c4 $1 {[%emt 0:00:31]} 17. Bd4 {[%emt 0:03:55]} cxd3 {[%emt 0:13:31]} 18. Rb1 {[%emt 0:09:19]} Qc7 {[%emt 0:05:14]} 19. Bxg7 {[%emt 0:12:06]} (19. Qxd3 $2 e5 20. O-O Rxb7 21. Rxb7 Qxb7 $19) 19... Kxg7 {[%emt 0:00:43]} 20. O-O {[%emt 0:00:14]} (20. Qb2 $2 Qf4 21. O-O (21. c4+ $2 f6 $19) 21... Qxf3 22. c4+ f6 $19) 20... Rxb7 {[%emt 0:06:44]} 21. Rxb7 {[%emt 0:03:12]} Qxb7 {[%emt 0:00:02][%mdl 4096] Endgame KQR-KQR} 22. Rd1 {[%emt 0:00:29]} Qb5 {[%emt 0:03:22] Wards off c4} 23. Kg2 {[%emt 0:03:29]} h6 {[%emt 0:05:11]} 24. f4 {[%emt 0:03:59]} (24. h4 $142) 24... a5 {[%emt 0:13:08][%cal Ba6a5,Ba5a4,Ba4a3][%mdl 32] Black is much more active.} 25. f3 {[%emt 0:02:34]} a4 {[%emt 0:00:34]} 26. Qc1 {[%emt 0:01:48]} Qc4 {[%emt 0:04:05]} 27. Rd2 {[%emt 0:02:20]} Rb8 {[%emt 0:04:36]} 28. Qd1 $2 {[%emt 0:03:11]} (28. h4 {was called for.}) 28... a3 $19 {[%emt 0:00:35] ...Rb2 is the strong threat.} (28... Qxc3 $2 {loses.} 29. Rxd3 Rb2+ 30. Kh3 Qc8+ 31. f5 $19) 29. Qc1 {[%emt 0:01:31] [#] Against Rb2} Rb2 $2 {[%emt 0:08:01]} 30. Rxb2 $11 {[%emt 0:01:29]} axb2 {[%emt 0:00:03]} 31. Qxb2 {[%emt 0:00:07] KQ-KQ} Qa4 {[%emt 0:00:23] ...Qc2+ would be deadly.} 32. c4+ $1 {[%emt 0:05:33]} Kh7 {[%emt 0:00:09] Hoping for ...Qc2+.} 33. Qe5 {[%emt 0:01:04]} Qxa2+ {[%emt 0:02:53]} 34. Kg3 {[%emt 0:00:11]} Qxc4 {[%emt 0:01:27] And now ...d2 would win.} 35. Qxe7 {[%emt 0:00:05]} h5 {[%emt 0:00:45]} 36. f5 {[%emt 0:02:11]} gxf5 {[%emt 0:00:16][%cal Bg6f5,Bf5e4][%mdl 32]} 37. Qg5 {[%emt 0:00:22] [#]} (37. Qd7 $1 $11) 37... Qc7+ {[%emt 0:00:40]} ({Much weaker is} 37... fxe4 $6 38. Qxh5+ Kg8 39. Qg5+ Kh7 40. Qh5+ Kg8 41. Qg5+ Kh7 42. Qh5+ $11) (37... Qd4 $1 $17 38. Qxf5+ Kg8 39. Qg5+ Kf8 40. Qh6+ Ke8) 38. Kh3 {[%emt 0:00:24] [#]} (38. Kg2 $1 $15) 38... fxe4 $1 $17 {[%emt 0:00:24]} 39. Qxh5+ {[%emt 0:00:29]} Kg7 {[%emt 0:00:07]} (39... Kg8 $17 40. Qg5+ Kf8 41. fxe4 Qd6) 40. Qg5+ $19 {[%emt 0:00:00]} Kf8 {[%emt 0:00:00]} 41. Qh6+ {[%emt 0:01:56]} (41. fxe4 {was the only chance.} Qd7+ 42. Kg2) 41... Ke8 {[%emt 0:04:00]} 42. fxe4 {[%emt 0:09:00]} Qc5 {[%emt 0:14:16]} 43. Qf4 $2 {[%emt 0:06:05]} (43. Kg3 Qg1+ 44. Kf3 Qf1+ 45. Kg3 (45. Kg4 Qg2+ 46. Kh4 Qxh2+ 47. Kg5 Qxh6+ 48. Kxh6 Ke7 49. Kh5 d2 50. Kg5 Ke6 51. Kg4 Ke5 52. Kh5 d1=Q+ 53. Kh6 Qg4 54. Kh7 Kxe4 55. Kh8 Ke5 56. Kh7 Kf6 57. Kh8 Qg7#) 45... Qe1+ 46. Kf3 Qe2+ 47. Kg3 Qxe4 48. Kf2) 43... Qd4 {[%emt 0:01:48] ( -> ...d2)} 44. Kg3 {[%emt 0:07:21]} d2 {[%emt 0:00:57] Black mates.} 45. Qb8+ {[%emt 0:01:18]} Ke7 {[%emt 0:00:27]} 46. Qc7+ {[%emt 0:02:47]} Ke6 {[%emt 0:00:21]} 47. Qc8+ {[%emt 0:03:57]} Qd7 {[%emt 0:00:18]} 48. Qc4+ {[%emt 0:01:22]} Ke7 {[%emt 0:00:08] Weighted Error Value: White=0.59/Black=0.14 (very precise)} 0-1

[Event "European Women-ch 2023"]
[Site "Petrovac"]
[Date "2023.03.20"]
[Round "3.3"]
[White "Milliet, Sophie"]
[Black "Radeva, Viktoria"]
[Result "1/2-1/2"]
[ECO "E04"]
[WhiteElo "2404"]
[BlackElo "2247"]
[Annotator "TA"]
[PlyCount "76"]
[EventDate "2023.03.15"]
[EventType "swiss"]
[EventCountry "MNE"]
[SourceTitle "playchess.com"]
[Source "ChessBase"]
[SourceQuality "1"]
[TimeControl "40/5400+30:1800+30"]

{[%evp 20,76,24,25,20,17,23,11,12,13,23,20,17,0,48,43,55,43,54,41,43,41,58,61,56,60,62,55,83,87,73,14,14,14,21,8,17,0,0,0,-7,-7,-7,-8,-8,-18,-18,-18,-18,-18,-18,-18,-16,-18,-16,-35,-35,-35,-8]} 1. d4 {[%emt 0:00:03]} d5 {[%emt 0:00:10]} 2. c4 {[%emt 0:00:05]} e6 {[%emt 0:00:03]} 3. Nf3 {[%emt 0:00:09]} Nf6 {[%emt 0:00:07]} 4. g3 {[%emt 0:00:06]} dxc4 {[%emt 0:00:24]} 5. Bg2 {[%emt 0:00:16]} c5 {[%emt 0:00:37]} 6. O-O {[%emt 0:00:50]} Nc6 {[%emt 0:00:06]} 7. dxc5 {[%emt 0:05:48]} Qxd1 {[%emt 0:00:06]} 8. Rxd1 {[%emt 0:00:02]} Bxc5 {[%emt 0:00:07]} 9. Nbd2 {[%emt 0:00:14]} c3 {[%emt 0:00:05]} 10. bxc3 {[%emt 0:00:03]} O-O {[%emt 0:00:08]} 11. Nb3 {[%emt 0:00:06]} Be7 {[%emt 0:00:05] E04: Open Catalan: 5 Nf3.} 12. Nfd4 {[%emt 0:00:54]} Nxd4 {[%emt 0:19:16]} 13. cxd4 {[%emt 0:00:05]} Nd5 {[%emt 0:02:31] The position is equal.} 14. Bd2 {[%emt 0:02:15]} Bd7 {[%emt 0:03:14]} 15. e4 {[%emt 0:03:05]} Nf6 {[%emt 0:08:19] [#]} 16. Bf4 $146 {[%emt 0:07:00][%cal Bd2f4,Bf4c7,Bc7a5][%mdl 32]} ({Predecessor:} 16. Bg5 h6 17. Bxf6 gxf6 18. e5 Ba4 19. Rdc1 Rac8 20. Nc5 Bxc5 21. dxc5 Bc6 22. exf6 {½-½ Rambaldi,F (2570)-Harikrishna,P (2716) PRO League Stage rapid 2020 (4)}) 16... Rfd8 {[%emt 0:14:53]} (16... Rac8 $11) 17. d5 $14 {[%emt 0:28:34]} exd5 {[%emt 0:00:57]} 18. exd5 {[%emt 0:00:04]} Ba3 {[%emt 0:05:45]} 19. Bc7 {[%emt 0:03:44]} Re8 {[%emt 0:00:56]} 20. Na5 {[%emt 0:10:24]} Ba4 {[%emt 0:14:59]} 21. Nxb7 {[%emt 0:04:01][%cal Od5d6]} Bxd1 {[%emt 0:00:13]} 22. Rxd1 {[%emt 0:00:01]} Re2 {[%emt 0:02:01][%cal Oa8c8]} 23. d6 $1 {[%emt 0:00:55] aiming for d7.} Rae8 {[%emt 0:03:33] [#] White must now prevent ...Re1+.} ({Less strong is} 23... Rxa2 24. d7 Nxd7 25. Rxd7 $16) 24. Ba5 {[%emt 0:09:48] Inhibits Re1+.} Rxa2 {[%emt 0:04:06]} 25. d7 {[%emt 0:01:56]} ({White should try} 25. Bc6 $16 Rc8 26. d7 Nxd7 27. Rxd7 (27. Bxd7 Rc1 $11)) 25... Nxd7 $1 $11 {[%emt 0:00:06][%mdl 64] Deflection} 26. Rxd7 {[%emt 0:00:03] Hoping for Bd5.} Ra1+ {[%emt 0:03:58]} 27. Bf1 {[%emt 0:00:04]} Bf8 $1 {[%emt 0:02:00]} 28. Rd5 {[%emt 0:13:37]} Rb8 {[%emt 0:02:27]} 29. Rb5 {[%emt 0:03:25]} Rxb7 {[%emt 0:02:32][%mdl 64] Remove Defender, Deflection} 30. Rxb7 {[%emt 0:00:04]} Rxa5 {[%emt 0:00:04][%mdl 4096] Endgame KRB-KRB} 31. Bc4 {[%emt 0:00:12]} Rf5 {[%emt 0:00:08]} 32. Rxa7 {[%emt 0:04:47] [#]} Rxf2 $1 {[%emt 0:00:13][%mdl 64] Decoy} 33. Kxf2 {[%emt 0:00:06]} Bc5+ {[%emt 0:00:03]} 34. Kf3 {[%emt 0:00:05]} Bxa7 {[%emt 0:00:03]} 35. g4 {[%emt 0:00:14]} g6 {[%emt 0:00:16]} 36. h4 {[%emt 0:01:42]} Kg7 {[%emt 0:00:09]} 37. h5 {[%emt 0:00:07]} gxh5 {[%emt 0:00:15]} 38. gxh5 {[%emt 0:00:06]} f6 {[%emt 0:00:15] Weighted Error Value: White=0.08 (flawless) /Black=0.06 (flawless)} 1/2-1/2